[Event "30th NATO Chess-ch 2019"]
[Site "Berlin"]
[Date "2019.09.17"]
[Round "3.11"]
[White "Pietruszewski, Marcin"]
[Black "Kraft, Chip"]
[Result "1-0"]
[ECO "B36"]
[WhiteElo "2215"]
[BlackElo "2050"]
[Annotator "ChessBase"]
[PlyCount "123"]
[EventDate "2019.09.16"]
[EventType "swiss"]
[EventCountry "GER"]
[SourceTitle "playchess.com"]
[Source "ChessBase"]
[SourceQuality "1"]
[TimeControl "40/7200:1800"]

1. e4 {[%emt 1:59:14]} c5 {[%emt 1:59:50]} 2. Nf3 {[%emt 1:59:09]} g6 {[%emt 1:59:46]} 3. d4 {[%emt 1:57:49]} cxd4 {[%emt 1:59:41]} 4. Nxd4 {[%emt 1:57:40]} Nc6 {[%emt 1:57:40]} 5. c4 {[%emt 1:59:31]} Nf6 {[%emt 1:59:04]} 6. Nc3 {[%emt 1:59:04]} d6 {[%emt 1:58:52]} 7. Be2 {[%emt 1:53:43]} Nxd4 {[%emt 1:58:31]} 8. Qxd4 {[%emt 1:58:31]} Bg7 {[%emt 1:53:34]} 9. Be3 {[%emt 1:52:21]} O-O {[%emt 1:57:30]} 10. Qd2 {[%emt 1:57:30]} Be6 {[%emt 1:53:57]} 11. Rc1 {[%emt 1:53:56]} Qa5 {[%emt 1:50:25]} 12. f3 {[%emt 1:43:10]} Rfc8 {[%emt 1:43:10]} 13. b3 {[%emt 1:42:16]} a6 {[%emt 1:44:23]} 14. a4 {[%emt 1:16:18]} Nd7 {[%emt 1:33:32]} 15. Nd5 {[%emt 1:33:32]} Qxd2+ 16. Kxd2 {[%emt 1:09:36]} Bxd5 {[%emt 1:31:50]} 17. exd5 {[%emt 1:31:50]} a5 {[%emt 1:30:09]} 18. Bd3 {[%emt 1:08:43]} Nc5 {[%emt 1:08:40]} 19. Bc2 {[%emt 1:08:40]} b6 {[%emt 1:24:45]} 20. Rce1 {[%emt 1:04:04]} Re8 {[%emt 1:04:04]} 21. Re2 {[%emt 1:02:52]} e6 {[%emt 1:17:54]} 22. dxe6 {[%emt 0:58:45]} fxe6 {[%emt 0:58:45]} 23. Rd1 {[%emt 0:56:38]} Rad8 {[%emt 1:02:24]} 24. Kc1 {[%emt 1:02:24]} Kf7 {[%emt 0:52:59]} 25. Red2 {[%emt 0:40:20]} Bf8 {[%emt 0:40:20]} 26. Bf4 {[%emt 0:49:55]} e5 {[%emt 0:49:02]} 27. Be3 {[%emt 0:49:02]} Be7 {[%emt 0:46:22]} 28. Kb2 {[%emt 0:29:30]} Ke6 {[%emt 0:37:43]} 29. Kc3 {[%emt 0:19:56]} Kd7 {[%emt 0:29:27]} 30. Be4 {[%emt 0:16:10]} Kc7 {[%emt 0:28:19]} 31. Bd5 {[%emt 0:28:19]} Bf6 {[%emt 0:25:54]} 32. Kc2 {[%emt 0:08:39]} Rf8 {[%emt 0:23:42]} 33. Rb1 {[%emt 0:07:32]} Na6 {[%emt 0:19:47]} 34. Be4 {[%emt 0:07:13]} Be7 {[%emt 0:18:53]} 35. Kd1 {[%emt 0:07:00]} Nc5 {[%emt 0:15:52]} 36. Bd5 {[%emt 0:06:38]} Rh8 {[%emt 0:12:31]} 37. b4 {[%emt 0:04:20]} axb4 {[%emt 0:06:52]} 38. Rxb4 {[%emt 0:04:18]} Rb8 {[%emt 0:03:40]} 39. Ra2 {[%emt 0:03:36]} Rhf8 {[%emt 0:00:25]} 40. Ke2 {[%emt 0:01:53]} g5 {[%emt 0:00:12]} 41. Rb5 {[%emt 0:01:16]} Rfc8 {[%emt 0:24:15]} 42. h3 {[%emt 0:24:15]} h6 {[%emt 0:23:54]} 43. Ra3 {[%emt 0:13:33]} Bf8 {[%emt 0:21:49]} 44. Bd2 {[%emt 0:11:15]} Nb7 {[%emt 0:13:59]} 45. Be3 {[%emt 0:13:59]} Nc5 {[%emt 0:13:46]} 46. Kf2 {[%emt 0:13:46]} Kd7 {[%emt 0:10:43]} 47. Kg3 {[%emt 0:09:34]} Ke7 {[%emt 0:09:34]} 48. h4 {[%emt 0:07:10]} gxh4+ {[%emt 0:08:03]} 49. Kxh4 {[%emt 0:08:03]} Kf6 {[%emt 0:07:19]} 50. Kh5 {[%emt 0:06:22]} Bg7 {[%emt 0:06:22]} 51. g4 {[%emt 0:03:48]} Bf8 52. g5+ hxg5 {[%emt 0:03:16]} 53. Bxg5+ {[%emt 0:03:18]} Kg7 {[%emt 0:03:15]} 54. a5 {[%emt 0:03:15]} bxa5 {[%emt 0:03:05]} 55. Raxa5 {[%emt 0:02:54]} Rxb5 {[%emt 0:02:38]} 56. cxb5 {[%emt 0:02:52]} Rc7 {[%emt 0:02:12]} 57. b6 {[%emt 0:02:12]} Rd7 {[%emt 0:02:49]} 58. Ra8 {[%emt 0:02:47]} Be7 {[%emt 0:01:29]} 59. Bh6+ {[%emt 0:01:10]} Kf6 {[%emt 0:01:14]} 60. Bg5+ {[%emt 0:01:04]} Kf5 {[%emt 0:00:58]} 61. Bxe7 {[%emt 0:01:00]} Rxe7 {[%emt 0:01:00]} 62. Rf8+ {[%emt 0:00:59] Kg5 --- Rd7 Ra8 --- Ra7 Bxg5 Kxg5 Kf8 Ra8+ Kg7 Kh5 --- Bc6 --- Bg5 --- Bd5 --- Rxd6 Rxd6 Bf4 --- Bc1 --- cxa6 Ra8} 1-0

[Event "30th NATO Chess-ch 2019"]
[Site "Berlin"]
[Date "2019.09.17"]
[Round "3.12"]
[White "Sarnovska, Eira"]
[Black "Sycz, Dariusz"]
[Result "0-1"]
[ECO "D02"]
[WhiteElo "1669"]
[BlackElo "2215"]
[Annotator "NA"]
[PlyCount "90"]
[EventDate "2019.09.16"]
[EventType "swiss"]
[EventCountry "GER"]
[SourceTitle "playchess.com"]
[Source "ChessBase"]
[SourceQuality "1"]
[TimeControl "40/7200:1800"]

1. d4 {[%emt 1:59:55]} d5 {[%emt 1:59:16]} 2. Nf3 {[%emt 1:59:48]} Nf6 {[%emt 1:59:48]} 3. g3 {[%emt 1:58:19]} e6 {[%emt 1:59:42]} 4. Bg2 {[%emt 1:53:00]} Bd6 {[%emt 1:50:02]} 5. O-O {[%emt 1:58:37]} O-O {[%emt 1:58:37]} 6. b3 {[%emt 1:58:22]} b6 {[%emt 1:47:39]} 7. Bb2 {[%emt 1:57:04]} Bb7 {[%emt 1:46:50]} 8. c4 {[%emt 1:56:18]} Nbd7 {[%emt 1:45:39]} 9. Nbd2 {[%emt 1:46:22]} Qe7 {[%emt 1:41:02]} 10. a3 {[%emt 1:31:27]} a5 {[%emt 1:37:52]} 11. h3 {[%emt 1:25:46]} Rfd8 {[%emt 1:31:51]} 12. Re1 {[%emt 1:15:30]} c5 {[%emt 1:28:43]} 13. Qb1 {[%emt 1:09:34]} Rac8 {[%emt 1:24:09]} 14. e3 {[%emt 1:03:16]} Ne4 {[%emt 1:03:16]} 15. Nxe4 {[%emt 1:00:21]} dxe4 {[%emt 1:00:21]} 16. Ne5 {[%emt 1:18:21]} f5 {[%emt 0:56:38]} 17. f4 {[%emt 1:17:05]} exf3 {[%emt 1:15:09]} 18. Nxf3 {[%emt 0:48:04]} Bxg3 {[%emt 0:48:04]} 19. Re2 {[%emt 0:45:42]} Be4 {[%emt 1:11:46]} 20. Qc1 {[%emt 0:44:40]} h6 {[%emt 0:44:40]} 21. Qc3 {[%emt 0:43:44]} e5 {[%emt 0:56:52]} 22. d5 {[%emt 0:36:19]} Bxf3 {[%emt 0:55:32]} 23. Bxf3 {[%emt 0:55:32]} e4 {[%emt 0:55:17]} 24. Bh1 {[%emt 0:34:25]} Be5 {[%emt 0:34:25]} 25. Qd2 {[%emt 0:32:44]} Bxb2 {[%emt 0:32:44]} 26. Qxb2 {[%emt 0:32:42]} Qe5 {[%emt 0:50:53]} 27. Qxe5 {[%emt 0:50:53]} Nxe5 {[%emt 0:50:45]} 28. Kh2 {[%emt 0:50:45]} a4 {[%emt 0:28:23]} 29. Rb1 {[%emt 0:25:56]} Ra8 {[%emt 0:25:56]} 30. Rc2 {[%emt 0:25:08]} axb3 {[%emt 0:25:02]} 31. Rxb3 {[%emt 0:25:02]} Ra4 {[%emt 0:45:08]} 32. Rbc3 {[%emt 0:45:08]} Rda8 {[%emt 0:23:33]} 33. Kg3 {[%emt 0:43:02]} g6 {[%emt 0:22:26]} 34. Kf4 {[%emt 0:42:33]} Nd3+ {[%emt 0:18:11]} 35. Kg3 {[%emt 0:18:05]} Rxa3 {[%emt 0:41:40]} 36. Bg2 {[%emt 0:17:30]} Kf7 {[%emt 0:40:19]} 37. Bf1 {[%emt 0:40:19]} Nb4 {[%emt 0:37:09]} 38. Rc1 {[%emt 0:13:52]} Kf6 {[%emt 0:36:39]} 39. Be2 {[%emt 0:13:02]} Ke5 {[%emt 0:13:02]} 40. h4 {[%emt 0:12:23]} g5 {[%emt 0:12:23]} 41. hxg5 {[%emt 0:33:42]} hxg5 {[%emt 0:12:19]} 42. Kf2 {[%emt 0:11:45]} Ra2 {[%emt 0:32:57]} 43. Ke1 {[%emt 0:11:17]} Rh8 {[%emt 0:32:40]} 44. Rd1 {[%emt 0:32:40]} Rh1+ {[%emt 0:30:31]} 45. Bf1 {[%emt 0:30:31]} Nd3+ {[%emt 0:09:30]} 0-1

[Event "30th NATO Chess-ch 2019"]
[Site "Berlin"]
[Date "2019.09.17"]
[Round "3.13"]
[White "Werksma, Arie"]
[Black "Marquardt, Christian"]
[Result "1-0"]
[ECO "B12"]
[WhiteElo "2197"]
[BlackElo "2049"]
[Annotator "ChessBase"]
[PlyCount "101"]
[EventDate "2019.09.16"]
[EventType "swiss"]
[EventCountry "GER"]
[SourceTitle "playchess.com"]
[Source "ChessBase"]
[SourceQuality "1"]
[TimeControl "40/7200:1800"]

1. e4 {[%emt 1:59:55]} c6 {[%emt 1:59:41]} 2. d4 {[%emt 1:59:48]} d5 {[%emt 1:59:32]} 3. e5 {[%emt 1:59:43]} Bf5 {[%emt 1:59:43]} 4. c3 {[%emt 1:58:42]} e6 {[%emt 1:58:42]} 5. Be3 {[%emt 1:58:37]} Nd7 {[%emt 1:58:37]} 6. Nd2 {[%emt 1:58:22]} Ne7 {[%emt 1:58:22]} 7. f4 {[%emt 1:54:25]} h5 {[%emt 1:52:17]} 8. Ngf3 {[%emt 1:54:45]} Qc7 {[%emt 1:49:40]} 9. Be2 {[%emt 1:54:19]} c5 {[%emt 1:54:19]} 10. O-O {[%emt 1:49:04]} Bg4 {[%emt 1:43:43]} 11. Bf2 {[%emt 1:48:18]} Nc6 {[%emt 1:48:18]} 12. h3 {[%emt 1:45:13]} Bxf3 {[%emt 1:40:03]} 13. Nxf3 {[%emt 1:40:03]} cxd4 {[%emt 1:38:03]} 14. Nxd4 {[%emt 1:38:03]} g6 {[%emt 1:33:36]} 15. Nb5 {[%emt 1:33:36]} Qb8 {[%emt 1:31:04]} 16. c4 {[%emt 1:33:10]} a6 {[%emt 1:33:10]} 17. cxd5 {[%emt 1:31:38]} axb5 {[%emt 1:22:29]} 18. dxc6 {[%emt 1:30:02]} bxc6 {[%emt 1:22:13]} 19. Bf3 {[%emt 1:27:33]} Ra6 {[%emt 1:19:33]} 20. a4 {[%emt 1:22:21]} Be7 {[%emt 1:12:04]} 21. axb5 {[%emt 1:21:23]} Rxa1 {[%emt 1:21:23]} 22. Qxa1 {[%emt 1:21:19]} Qxb5 {[%emt 1:07:33]} 23. Qa8+ {[%emt 1:19:40]} Nb8 {[%emt 1:06:00]} 24. Bxc6+ {[%emt 1:19:27]} Qxc6 {[%emt 1:05:54]} 25. Qxb8+ {[%emt 1:19:21]} Bd8 {[%emt 1:05:36]} 26. Rd1 {[%emt 1:12:41]} Qc7 {[%emt 1:03:36]} 27. Qb5+ {[%emt 1:12:12]} Kf8 {[%emt 1:12:12]} 28. Bc5+ {[%emt 1:11:38]} Kg7 {[%emt 1:00:34]} 29. Rd7 {[%emt 1:10:53]} Qc8 {[%emt 0:59:17]} 30. b4 {[%emt 1:10:46]} Bh4 {[%emt 0:58:09]} 31. Kh2 {[%emt 0:59:02]} Qa8 {[%emt 0:49:42]} 32. Qd3 {[%emt 0:52:48]} Be1 {[%emt 0:44:38]} 33. Qe2 {[%emt 0:43:10]} Bh4 {[%emt 0:38:48]} 34. g3 {[%emt 0:42:54]} Bd8 {[%emt 0:38:41]} 35. h4 {[%emt 0:42:38]} Qc6 {[%emt 0:33:22]} 36. Rd6 {[%emt 0:25:24]} Qa4 {[%emt 0:30:54]} 37. Ra6 {[%emt 0:30:54]} Qd7 {[%emt 0:28:00]} 38. Ra7 {[%emt 0:23:39]} Qc6 {[%emt 0:23:39]} 39. Qg2 {[%emt 0:20:06]} Qb5 {[%emt 0:20:06]} 40. Qb7 {[%emt 0:15:48]} Qe2+ {[%emt 0:21:05]} 41. Kg1 {[%emt 0:15:15]} Qd1+ {[%emt 0:20:03]} 42. Kg2 {[%emt 0:14:33]} Qc2+ {[%emt 0:19:55]} 43. Bf2 {[%emt 0:13:46]} Rf8 {[%emt 0:17:30]} 44. b5 {[%emt 0:13:34]} Qf5 {[%emt 0:16:49]} 45. Qf3 {[%emt 0:06:44]} Qc2 {[%emt 0:06:44]} 46. Qe3 {[%emt 0:06:26]} Re8 {[%emt 0:11:30]} 47. b6 {[%emt 0:04:08]} Be7 {[%emt 0:04:08]} 48. Rc7 {[%emt 0:11:01]} Qb1 {[%emt 0:03:04]} 49. Qf3 {[%emt 0:25:38]} Qd1 50. Qxd1 Bf8 51. Z0 {Nb8 --- Ba2} 1-0

[Event "30th NATO Chess-ch 2019"]
[Site "Berlin"]
[Date "2019.09.17"]
[Round "3.14"]
[White "Everett, Elijah"]
[Black "Aagaard, Gert"]
[Result "1-0"]
[ECO "B01"]
[WhiteElo "2187"]
[BlackElo "2029"]
[Annotator "ChessBase"]
[PlyCount "97"]
[EventDate "2019.09.16"]
[EventType "swiss"]
[EventCountry "GER"]
[SourceTitle "playchess.com"]
[Source "ChessBase"]
[SourceQuality "1"]
[TimeControl "40/7200:1800"]

1. e4 {[%emt 1:59:56]} d5 {[%emt 1:59:56]} 2. exd5 {[%emt 1:59:47]} Qxd5 {[%emt 1:59:47]} 3. Nc3 Qa5 {[%emt 1:59:35]} 4. d4 {[%emt 1:59:42]} Nf6 {[%emt 1:59:24]} 5. Nf3 {[%emt 1:59:24]} Bf5 {[%emt 1:58:54]} 6. Bc4 {[%emt 1:58:54]} c6 {[%emt 1:58:19]} 7. Bd2 {[%emt 1:57:08]} e6 {[%emt 1:57:20]} 8. Nd5 {[%emt 1:56:55]} Qd8 {[%emt 1:56:20]} 9. Nxf6+ {[%emt 1:52:50]} gxf6 {[%emt 1:52:50]} 10. Bb3 {[%emt 1:52:36]} Rg8 {[%emt 1:48:15]} 11. Qe2 {[%emt 1:48:15]} Bd6 {[%emt 1:48:00]} 12. Nh4 {[%emt 1:46:11]} Bg4 {[%emt 1:46:11]} 13. f3 {[%emt 1:41:59]} Bh5 {[%emt 1:42:07]} 14. O-O-O Qe7 {[%emt 1:34:30]} 15. Rde1 {[%emt 1:34:30]} Bg6 {[%emt 1:33:34]} 16. g4 {[%emt 1:33:00]} Kd8 {[%emt 1:28:27]} 17. Qf2 {[%emt 1:25:46]} Qd7 {[%emt 1:20:44]} 18. f4 {[%emt 1:17:35]} f5 {[%emt 1:17:35]} 19. gxf5 {[%emt 1:14:06]} exf5 {[%emt 1:14:44]} 20. Nf3 {[%emt 1:13:00]} Kc7 {[%emt 1:11:54]} 21. Ne5 {[%emt 1:11:35]} Qd8 {[%emt 1:06:01]} 22. Nxf7 {[%emt 1:06:01]} Bxf7 {[%emt 1:06:54]} 23. Bxf7 {[%emt 1:05:47]} Rf8 {[%emt 1:06:46]} 24. Be6 {[%emt 1:05:08]} Nd7 {[%emt 1:03:46]} 25. Rhg1 {[%emt 1:03:46]} Qf6 {[%emt 1:02:50]} 26. Rg5 {[%emt 0:51:37]} Rae8 {[%emt 0:51:37]} 27. Rxf5 {[%emt 0:48:58]} Rxe6 {[%emt 0:49:23]} 28. Rxf6 {[%emt 0:49:23]} Rexf6 {[%emt 0:48:05]} 29. Rf1 {[%emt 0:48:09]} Rf5 {[%emt 0:45:25]} 30. c4 {[%emt 0:45:00]} Kb8 {[%emt 0:45:00]} 31. Qe1 {[%emt 0:43:07]} Kc8 {[%emt 0:43:07]} 32. Qe4 {[%emt 0:39:47]} Bc7 {[%emt 0:37:50]} 33. Kc2 {[%emt 0:37:50]} Rh5 {[%emt 0:33:51]} 34. Rf2 {[%emt 0:30:47]} Rhf5 {[%emt 0:30:58]} 35. Rg2 {[%emt 0:27:31]} R5f7 {[%emt 0:25:07]} 36. Rg4 {[%emt 0:25:07]} Kb8 {[%emt 0:23:32]} 37. Qe6 {[%emt 0:23:32]} Nb6 {[%emt 0:21:59]} 38. a4 {[%emt 0:21:59]} Rf6 {[%emt 0:18:50]} 39. Qe2 {[%emt 0:15:58]} R6f7 {[%emt 0:18:07]} 40. a5 {[%emt 0:14:46]} Nc8 {[%emt 0:14:25]} 41. a6 {[%emt 0:11:10]} Nd6 {[%emt 0:11:10]} 42. axb7 {[%emt 0:09:15]} Kxb7 {[%emt 0:08:49]} 43. Rg3 {[%emt 0:08:49]} Re8 {[%emt 0:06:37]} 44. Rb3+ {[%emt 0:07:22]} Bb6 {[%emt 0:04:52]} 45. Qh5 {[%emt 0:06:29]} Ref8 {[%emt 0:36:29]} 46. Bb4 {[%emt 0:23:57]} Rf5 {[%emt 0:34:24]} 47. Qh3 {[%emt 0:34:10]} c5 {[%emt 0:18:15]} 48. dxc5 {[%emt 0:33:12]} Nxc4 {[%emt 0:17:30]} 49. c6+ {[%emt 1:51:22] Kd5} 1-0

[Event "30th NATO Chess-ch 2019"]
[Site "Berlin"]
[Date "2019.09.17"]
[Round "3.15"]
[White "Tommasini, Enzo"]
[Black "Cheung, Jan"]
[Result "1-0"]
[ECO "D34"]
[WhiteElo "2147"]
[BlackElo "2015"]
[Annotator "ChessBase"]
[PlyCount "115"]
[EventDate "2019.09.16"]
[EventType "swiss"]
[EventCountry "GER"]
[SourceTitle "playchess.com"]
[Source "ChessBase"]
[SourceQuality "1"]
[TimeControl "40/7200:1800"]

1. Nf3 {[%emt 1:59:13]} Nf6 {[%emt 1:59:38]} 2. g3 {[%emt 1:58:40]} d5 {[%emt 1:58:40]} 3. Bg2 {[%emt 1:58:22]} e6 {[%emt 1:57:01]} 4. O-O {[%emt 1:57:46]} c5 {[%emt 1:56:13]} 5. d4 {[%emt 1:57:23]} cxd4 {[%emt 1:54:57]} 6. Nxd4 {[%emt 1:54:57]} Be7 {[%emt 1:51:29]} 7. c4 {[%emt 1:56:36]} O-O {[%emt 1:50:17]} 8. cxd5 {[%emt 1:54:48]} exd5 {[%emt 1:50:04]} 9. Nc3 {[%emt 1:54:31]} Nc6 {[%emt 1:46:59]} 10. a3 {[%emt 1:46:59]} Bg4 {[%emt 1:40:00]} 11. h3 {[%emt 1:40:00]} Be6 {[%emt 1:39:32]} 12. Be3 {[%emt 1:39:32]} Qd7 {[%emt 1:48:39]} 13. Kh2 {[%emt 1:36:31]} h5 {[%emt 1:45:53]} 14. Bg5 {[%emt 1:18:12]} Rad8 {[%emt 1:36:57]} 15. e3 {[%emt 1:35:43]} g6 {[%emt 1:35:43]} 16. Nce2 {[%emt 1:29:43]} Bf5 {[%emt 1:00:30]} 17. Nf4 {[%emt 1:25:16]} Be4 {[%emt 0:54:17]} 18. f3 {[%emt 0:54:17]} Bf5 {[%emt 0:53:43]} 19. Rc1 {[%emt 1:20:08]} Rfe8 {[%emt 0:46:26]} 20. Re1 {[%emt 0:46:26]} Nh7 {[%emt 0:39:36]} 21. Bxe7 {[%emt 0:39:36]} Rxe7 {[%emt 1:14:28]} 22. g4 {[%emt 0:39:10]} hxg4 {[%emt 0:34:32]} 23. hxg4 {[%emt 1:13:44]} Be6 {[%emt 1:13:44]} 24. Ndxe6 {[%emt 1:10:18]} fxe6 {[%emt 1:10:18]} 25. Nxg6 {[%emt 1:09:59]} Rg7 {[%emt 0:26:07]} 26. Nf4 {[%emt 0:26:07]} Nf6 {[%emt 0:24:41]} 27. Kg1 {[%emt 0:24:41]} e5 {[%emt 0:24:01]} 28. Nh3 {[%emt 0:24:01]} d4 {[%emt 1:06:32]} 29. exd4 {[%emt 1:04:51]} exd4 {[%emt 0:18:43]} 30. Qb3+ {[%emt 0:18:43]} Qd5 {[%emt 0:17:07]} 31. Qd3 {[%emt 0:17:07]} Qd6 {[%emt 0:10:46]} 32. Qf5 {[%emt 0:10:46]} Ne7 {[%emt 0:10:10]} 33. Qe6+ {[%emt 0:10:10]} Qxe6 {[%emt 0:09:07]} 34. Rxe6 {[%emt 1:00:08]} Nfd5 {[%emt 0:07:30]} 35. Rd1 {[%emt 0:07:30]} Nc6 {[%emt 0:07:20]} 36. Bf1 {[%emt 0:07:20]} Ne3 {[%emt 0:05:26]} 37. Rd2 {[%emt 0:05:26]} Nxf1 {[%emt 0:56:34]} 38. Kxf1 {[%emt 0:05:03]} Na5 {[%emt 0:04:05]} 39. Re4 {[%emt 0:04:05]} Rgd7 {[%emt 0:03:11]} 40. Rd3 {[%emt 0:03:11]} Nc4 {[%emt 0:01:14]} 41. Re2 {[%emt 0:49:22]} Rd6 {[%emt 0:25:22]} 42. Nf4 {[%emt 1:17:18]} Kf7 {[%emt 0:25:14]} 43. Rh2 {[%emt 0:25:14]} Rb6 {[%emt 0:24:28]} 44. b3 {[%emt 1:11:16]} Nxa3 {[%emt 1:11:16]} 45. g5 {[%emt 0:23:33]} Nb5 {[%emt 0:21:02]} 46. Rh7+ {[%emt 1:10:11]} Kg8 {[%emt 1:10:11]} 47. Re7 {[%emt 0:20:38]} Rdd6 {[%emt 0:12:54]} 48. Nh5 {[%emt 0:12:54]} Kf8 {[%emt 1:06:19]} 49. Rh7 {[%emt 0:12:28]} Kg8 {[%emt 1:06:04]} 50. Rg7+ {[%emt 0:09:53]} Kf8 {[%emt 1:05:41]} 51. f4 {[%emt 1:05:27]} Nc3 {[%emt 1:05:27]} 52. f5 {[%emt 1:05:01]} Ne4 {[%emt 1:05:01]} 53. g6 {[%emt 1:02:34]} Nc5 {[%emt 0:05:39]} 54. Rf7+ {[%emt 0:05:39]} Kg8 {[%emt 1:02:03]} 55. Rg7+ {[%emt 1:00:53]} Kf8 {[%emt 1:00:53]} 56. Rc7 {[%emt 0:02:56]} Rbc6 {[%emt 0:00:53]} 57. Rf7+ {[%emt 0:58:19]} Kg8 {[%emt 0:00:32]} 58. Re7 {[%emt 0:57:32]} 1-0

[Event "30th NATO Chess-ch 2019"]
[Site "Berlin"]
[Date "2019.09.17"]
[Round "3.16"]
[White "Kersic, Matej"]
[Black "Hater, David"]
[Result "1-0"]
[ECO "C80"]
[WhiteElo "2122"]
[BlackElo "1973"]
[Annotator "NA"]
[PlyCount "85"]
[EventDate "2019.09.16"]
[EventType "swiss"]
[EventCountry "GER"]
[SourceTitle "playchess.com"]
[Source "ChessBase"]
[SourceQuality "1"]
[TimeControl "40/7200:1800"]

1. e4 {[%emt 1:59:56]} e5 {[%emt 1:59:54]} 2. Nf3 {[%emt 1:59:42]} Nc6 {[%emt 1:59:52]} 3. Bb5 {[%emt 1:59:52]} a6 {[%emt 1:59:11]} 4. Ba4 {[%emt 1:59:02]} Nf6 {[%emt 1:59:30]} 5. O-O {[%emt 1:58:42]} Nxe4 {[%emt 1:58:59]} 6. d4 {[%emt 1:58:33]} b5 {[%emt 1:58:49]} 7. Bb3 {[%emt 1:58:49]} d5 {[%emt 1:58:24]} 8. dxe5 {[%emt 1:58:39]} Be6 {[%emt 1:58:31]} 9. Be3 {[%emt 1:58:31]} Nc5 {[%emt 1:45:00]} 10. h3 {[%emt 1:42:37]} Nxb3 {[%emt 1:37:08]} 11. axb3 {[%emt 1:41:43]} Be7 {[%emt 1:36:43]} 12. c3 {[%emt 1:36:43]} O-O {[%emt 1:34:37]} 13. Nbd2 {[%emt 1:34:37]} f6 {[%emt 1:29:33]} 14. exf6 {[%emt 1:34:32]} Bxf6 15. Re1 {[%emt 1:29:24]} Re8 {[%emt 1:25:27]} 16. Nf1 {[%emt 1:31:51]} Bf7 {[%emt 1:15:43]} 17. Qd2 {[%emt 1:30:23]} d4 {[%emt 1:06:39]} 18. Bxd4 {[%emt 1:20:39]} Rxe1 {[%emt 1:04:21]} 19. Rxe1 {[%emt 1:04:21]} Nxd4 {[%emt 1:20:33]} 20. Nxd4 {[%emt 1:20:18]} Bxd4 {[%emt 1:03:29]} 21. cxd4 {[%emt 1:03:29]} Bxb3 {[%emt 1:02:52]} 22. Qc3 {[%emt 1:02:52]} Bf7 {[%emt 0:56:17]} 23. Re5 {[%emt 1:08:58]} Qd7 {[%emt 1:08:58]} 24. Rc5 {[%emt 1:07:09]} Ra7 {[%emt 0:38:05]} 25. b4 {[%emt 0:38:05]} h6 {[%emt 0:33:20]} 26. Ne3 {[%emt 0:33:20]} Qe7 {[%emt 0:25:53]} 27. d5 {[%emt 0:48:06]} Qd7 {[%emt 0:13:09]} 28. Qe5 {[%emt 0:13:09]} Bg6 {[%emt 0:07:17]} 29. Rc6 {[%emt 0:40:26]} Kh7 {[%emt 0:40:26]} 30. Qd4 {[%emt 0:06:54]} Ra8 {[%emt 0:05:52]} 31. Qc5 {[%emt 0:37:57]} Rd8 {[%emt 0:37:57]} 32. Rxc7 {[%emt 0:31:10]} Qd6 {[%emt 0:04:22]} 33. Qc3 {[%emt 0:30:54]} Rd7 {[%emt 0:04:02]} 34. Rc6 {[%emt 0:30:44]} Qb8 {[%emt 0:03:18]} 35. Rxa6 {[%emt 0:27:32]} Qb7 {[%emt 0:02:39]} 36. Qc6 {[%emt 0:26:18]} Qxc6 {[%emt 0:02:19]} 37. Rxc6 {[%emt 0:02:19]} Be4 {[%emt 0:26:14]} 38. Rc5 {[%emt 0:26:07]} Bd3 {[%emt 0:01:55]} 39. f4 {[%emt 0:25:28]} Ra7 {[%emt 0:01:25]} 40. d6 {[%emt 0:01:25]} Rd7 {[%emt 0:00:59]} 41. Rd5 {[%emt 0:23:48]} Bc4 {[%emt 0:00:56]} 42. Rd4 {[%emt 0:00:56]} Kg6 {[%emt 0:00:20]} 43. Ng4 {[%emt 0:00:20]} 1-0

[Event "30th NATO Chess-ch 2019"]
[Site "Berlin"]
[Date "2019.09.17"]
[Round "3.17"]
[White "Keough, Robert"]
[Black "Violini, Paolo"]
[Result "0-1"]
[ECO "C17"]
[WhiteElo "2108"]
[BlackElo "1963"]
[Annotator "NA"]
[PlyCount "96"]
[EventDate "2019.09.16"]
[EventType "swiss"]
[EventCountry "GER"]
[SourceTitle "playchess.com"]
[Source "ChessBase"]
[SourceQuality "1"]
[TimeControl "40/7200:1800"]

1. e4 {[%emt 2:00:00]} e6 {[%emt 1:56:15]} 2. d4 {[%emt 1:59:54]} d5 {[%emt 1:56:09]} 3. Nc3 {[%emt 1:59:51]} Bb4 {[%emt 1:56:02]} 4. e5 {[%emt 1:56:02]} c5 {[%emt 1:55:59]} 5. Qg4 {[%emt 1:59:40]} Ne7 {[%emt 1:59:40]} 6. dxc5 {[%emt 1:58:11]} Bxc3+ {[%emt 1:49:42]} 7. bxc3 {[%emt 1:49:42]} Ng6 {[%emt 1:46:36]} 8. Bd3 {[%emt 1:46:36]} Nc6 {[%emt 1:44:37]} 9. Nf3 {[%emt 1:54:09]} Qc7 {[%emt 1:39:09]} 10. O-O {[%emt 1:50:29]} Ncxe5 {[%emt 1:35:39]} 11. Nxe5 {[%emt 1:35:39]} Qxe5 {[%emt 1:35:22]} 12. Bb5+ {[%emt 1:35:22]} Bd7 {[%emt 1:34:27]} 13. Bxd7+ {[%emt 1:34:27]} Kxd7 {[%emt 1:34:23]} 14. Qa4+ {[%emt 1:38:36]} Ke7 {[%emt 1:38:36]} 15. c6 {[%emt 1:35:55]} bxc6 {[%emt 1:17:46]} 16. Ba3+ {[%emt 1:34:41]} Kf6 {[%emt 1:34:41]} 17. Bc5 {[%emt 1:29:44]} Qc7 {[%emt 1:17:07]} 18. f4 {[%emt 1:25:14]} Ne7 {[%emt 1:16:35]} 19. Rf3 {[%emt 1:16:35]} h5 {[%emt 1:19:03]} 20. Bd4+ {[%emt 1:11:26]} Kf5 {[%emt 1:14:13]} 21. Bxg7 {[%emt 1:14:13]} Rhg8 {[%emt 1:13:24]} 22. Rg3 {[%emt 1:00:30]} f6 {[%emt 1:11:14]} 23. Qd4 {[%emt 1:11:14]} Qb6 {[%emt 1:11:01]} 24. Bxf6 {[%emt 0:41:45]} Qxd4+ {[%emt 1:10:16]} 25. Bxd4 {[%emt 1:10:16]} Rxg3 {[%emt 0:41:38]} 26. hxg3 {[%emt 1:09:47]} Kg4 {[%emt 0:56:27]} 27. Re1 {[%emt 0:56:27]} Nf5 {[%emt 0:56:08]} 28. Rxe6 {[%emt 0:37:55]} Kxg3 {[%emt 0:37:55]} 29. Be5 {[%emt 0:51:06]} Rg8 {[%emt 0:49:40]} 30. Rxc6 {[%emt 0:49:40]} h4 {[%emt 0:49:13]} 31. Rf6 {[%emt 0:49:13]} Kg4 {[%emt 0:33:51]} 32. Ra6 {[%emt 0:48:38]} h3 {[%emt 0:47:09]} 33. Rxa7 {[%emt 0:28:34]} Kg3 {[%emt 0:28:34]} 34. gxh3 {[%emt 0:27:56]} Kf3+ {[%emt 0:46:38]} 35. Kh1 {[%emt 0:46:38]} Rg2 {[%emt 0:45:31]} 36. Rg7 {[%emt 0:45:31]} Nxg7 {[%emt 0:45:22]} 37. Bxg7 Rxg7 {[%emt 0:16:59]} 38. f5 {[%emt 0:45:20]} Kg3 {[%emt 0:16:28]} 39. Kg1 {[%emt 0:16:08]} Rf7 {[%emt 0:43:16]} 40. Kf1 {[%emt 0:43:16]} Rxf5+ {[%emt 0:42:50]} 41. Ke2 {[%emt 0:42:50]} Rf4 {[%emt 0:42:33]} 42. Kd2 {[%emt 0:15:00]} Kxh3 {[%emt 0:15:00]} 43. Kc1 {[%emt 0:14:56]} Kg3 {[%emt 0:14:56]} 44. Kb2 {[%emt 0:14:47]} Kf3 {[%emt 0:14:47]} 45. Kb3 {[%emt 0:14:42]} Ke3 {[%emt 0:40:54]} 46. a4 {[%emt 0:14:35]} Rc4 {[%emt 0:40:13]} 47. a5 {[%emt 0:14:21]} Kd2 {[%emt 0:40:07]} 48. a6 {[%emt 0:14:13]} Rc6 {[%emt 0:40:03]} 0-1